Cogmind - Beta 13 @@@ ROGUE MODE // 2024.07.31 @ 06:00:18 Player: Fqbits Result: Destroyed by G-47 Trooper with Particle Gun Performance ------------- Evolutions (0) 0 Regions Visited (1) 200 Robots Destroyed (18) 90 Value Destroyed (408) 408 Prototype IDs (0) 0 Alien Tech Used (0) 0 Bonus (0) 0 TOTAL SCORE: 698 Bonus ------- None Cogmind --------- Core Integrity 0/250 Matter 300/300 Energy 125/125 System Corruption 0% Temperature Cool (9) Movement Walking (120) Location -10/Materials Parts ------- > --- POWER (1) -------- Light Ion Engine > --- PROPULSION (2) --- Aluminum Leg Aluminum Leg > --- UTILITY (2) ------ Power Shielding Power Shielding > --- WEAPON (2) ------- Particle Gun Hammer > --- INVENTORY (5) ---- Aluminum Leg Flight Unit Structural Scanner Peak State ------------ > --- POWER ------------ Light Ion Engine > --- PROPULSION ------- Aluminum Leg Aluminum Leg > --- UTILITY ---------- Power Shielding Power Shielding > --- WEAPON ----------- Particle Gun Hammer > --- INVENTORY -------- Structural Scanner [Rating: 8] Favorites ----------- Power Light Ion Engine Engine Light Ion Engine Propulsion Wheel Treads Light Treads Leg Aluminum Leg Wheel Wheel Utility Power Shielding Protection Power Shielding Weapon EM Pulse Gun Energy Gun EM Pulse Gun Impact Weapon Hammer Build | -11 -10 ------- Run | Yrd Mat Slots Evolved . | . . Power . | . . Propulsion . | . . Utility . | . . Weapon . | . . Parts Attached 14 | 3 11 Power 2 | 1 1 Engine 2 | 1 1 Core . | . . Reactor . | . . Propulsion 6 | 2 4 Treads 2 | . 2 Leg 2 | . 2 Wheel 2 | 2 . Hover . | . . Flight . | . . Utility 2 | . 2 Device . | . . Storage . | . . Processor . | . . Hackware . | . . Protection 2 | . 2 Artifact . | . . Weapon 4 | . 4 Energy Gun 3 | . 3 Energy Cannon . | . . Ballistic Gun . | . . Ballistic Cannon . | . . Launcher . | . . Special Weapon . | . . Impact Weapon 1 | . 1 Slashing Weapon . | . . Piercing Weapon . | . . Special Melee Weapon . | . . Unidentified Prototypes . | . . Parts Lost 5 | . 5 Power 1 | . 1 Propulsion 2 | . 2 Utility . | . . Weapon 2 | . 2 Highest Loss Streak 4 | . 4 To Critical Strikes . | . . Average Slot Usage (%) 78 | . 78 Engine 13 | . 13 Treads 8 | . 8 Leg 3 | . 3 Wheel 12 | . 12 Protection 14 | . 14 Energy Gun 14 | . 14 Impact Weapon 9 | . 9 Naked Turns . | . . Heaviest Build 10 | 3 10 Greatest Support 40 | 20 40 Greatest Overweight (x) 2 | . 2 Average Overweight (x) . | . . Largest Inventory Capacity 5 | 5 5 Average Capacity 5 | 5 5 Most Carried 3 | 3 3 Average Carried . | 1 . Final Capacity 5 | 5 5 Final Carried 3 | 2 3 Class Distribution -------------------- 100% | Mutant Dominant Class ---------------- Mutant | -10/Materials Resources | -11 -10 ----------- Run | Yrd Mat Matter Collected 340 | 230 110 Remotely . | . . Salvage Created 687 | . 687 Parts 21 | . 21 Haulers Intercepted 1 | . 1 Recyclers Shooed 1 | . 1 Parts Field Recycled . | . . Retrieved Matter . | . . Parts Self-Destructed . | . . Prevented . | . . Kills | -11 -10 ------- Run | Yrd Mat Combat Hostiles Destroyed 9 | . 9 Melee 4 | . 4 Guns 5 | . 5 Classes Destroyed 6 | . 6 Worker 3 | . 3 Tunneler 1 | . 1 Hauler 1 | . 1 Recycler 2 | . 2 Watcher 2 | . 2 Grunt 9 | . 9 Best Kill Streak 5 | . 5 Combat Bots Only 3 | . 3 Max Kills in Single Turn 1 | . 1 Gunslinging . | . . Exploded . | . . Melee 1 | . 1 Uniques/NPCs Destroyed . | . . Combat | -11 -10 -------- Run | Yrd Mat Hostile Shots Fired 94 | . 94 Missed 23 | . 23 Damage Taken 885 | . 885 Core 250 | . 250 Absorbed by Shields . | . . Redirected to Shielding 20 | . 20 Core Remaining (%) 100 | 100 . Volleys Fired 27 | . 27 Largest 2 | . 2 Hottest 80 | . 80 Shots Fired 32 | . 32 Gun 32 | . 32 Cannon . | . . Launcher . | . . Special . | . . Kinetic . | . . Thermal 8 | . 8 Explosive . | . . Electromagnetic 24 | . 24 Robot Hit Streak 13 | . 13 Robot Miss Streak 3 | . 3 Penetration Max . | . . Secondary Targets . | . . Shots Hit Robots 52 | . 52 Core Hits 15 | . 15 Critical Kills 2 | . 2 Critical Parts Destroyed 6 | . 6 Critical Strikes 10 | . 10 Burn 2 | . 2 Smash 8 | . 8 Melee Attacks 42 | . 42 Impact 42 | . 42 Slashing . | . . Piercing . | . . Sneak Attacks 11 | . 11 Combat Hostiles . | . . Follow-up Attacks . | . . Damage Inflicted 1499 | . 1499 Guns 267 | . 267 Cannons . | . . Explosions 99 | . 99 Melee 1130 | . 1130 Ramming 3 | . 3 Kinetic . | . . Thermal 149 | . 149 Explosive . | . . Electromagnetic 217 | . 217 Impact 1130 | . 1130 Slashing . | . . Piercing . | . . Highest Corruption . | . . Average Corruption . | . . Corruption Purged . | . . Corruption Blocked . | . . Overload Shots . | . . Overflow Damage 405 | . 405 Projectiles . | . . Explosions . | . . Melee 405 | . 405 Knockbacks 8 | . 8 Impact 8 | . 8 Kinetic . | . . Secondary . | . . Self-Inflicted Damage 24 | . 24 Shots 1 | . 1 Rammed 1 | . 1 Targets Rammed 1 | . 1 Kicked . | . . Crushed . | . . Highest Temperature 237 | . 237 Average Temperature 73 | . 73 Received Heat Transfer 516 | . 516 Siege Activations . | . . Robots Corrupted 1 | . 1 Combat Hostiles . | . . Parts Fried 8 | . 8 Impact Corruptions 17 | . 17 Robots Melted . | . . Combat Hostiles . | . . Parts Melted 2 | . 2 Heat Transferred 459 | . 459 Parts Sabotaged . | . . Parts Stolen . | . . Parts Stripped . | . . Power Chain Reactions 2 | . 2 Alert | -11 -10 ------- Run | Yrd Mat Peak Influence 182 | . 182 Initial . | . . Average 79 | . 84 Maximum Alert Level . | . . Low Security (%) 100 | 100 100 Level 1 . | . . Level 2 . | . . Level 3 . | . . Level 4 . | . . Level 5 . | . . High Security . | . . Max Security . | . . Squads Dispatched 1 | . 1 Investigation . | . . Extermination . | . . Reinforcement 1 | . 1 Assault . | . . Garrison . | . . Intercept . | . . Searches Triggered . | . . Construction Impeded . | . . Haulers Reinforced . | . . Active Scanning Responses . | . . Cargo Convoy Interrupts . | . . Stealth | -11 -10 --------- Run | Yrd Mat Distress Signals 2 | . 2 Communications Jammed . | . . Distress Signals . | . . Times Spotted 18 | . 18 Peak Tracking Total 5 | . 5 Tactical Retreats 1 | . 1 Traps | -11 -10 ------- Run | Yrd Mat Traps Triggered . | . . Indirectly . | . . Trap Hack Attempts . | . . Triggered . | . . Disarmed . | . . Reprogrammed . | . . Reused . | . . Traps Extracted . | . . Installed . | . . Triggered . | . . Machines | -11 -10 ---------- Run | Yrd Mat Machines Disabled 2 | . 2 Max in Single Turn 1 | . 1 Machines Repaired . | . . Machines Dismantled . | . . Machines Sabotaged . | . . Overloaded Fab Kills . | . . Hacking | -11 -10 --------- Run | Yrd Mat Machines Accessed 4 | . 4 Terminals 4 | . 4 Fabricators . | . . Repair Stations . | . . Recycling Units . | . . Scanalyzers . | . . Garrison Access . | . . Total Hacks 8 | . 8 Successful 5 | . 5 Failed 3 | . 3 Catastrophic 1 | . 1 Database Lockouts . | . . Manual . | . . Terminals 8 | . 8 Fabricators . | . . Repair Stations . | . . Recycling Units . | . . Scanalyzers . | . . Garrison Access . | . . Terminal Hacks 5 | . 5 Record 2 | . 2 Transport Status 1 | . 1 Hauler Manifests 2 | . 2 Fabricator Hacks . | . . Repair Station Hacks . | . . Recycling Unit Hacks . | . . Scanalyzer . | . . Garrison Access Hacks . | . . Unauthorized Hacks . | . . Terminals . | . . Fabricators . | . . Repair Stations . | . . Recycling Units . | . . Scanalyzers . | . . Garrison Access . | . . Data Cores Recovered . | . . Used . | . . Hacking Detections 3 | . 3 Full Trace Events . | . . Feedback Events . | . . Feedback Blocked . | . . Robot Schematics Acquired . | . . Robots Built . | . . Authchips . | . . Time . | . . Total Robot Build Rating . | . . Part Schematics Acquired . | . . Parts Built . | . . Authchips . | . . Time . | . . Total Part Build Rating . | . . Parts Repaired . | . . Time . | . . Parts Recycled . | . . Recycled Matter . | . . Retrieved Matter . | . . Retrieved Components . | . . Parts Scanalyzed . | . . Part Schematics Acquired . | . . Parts Damaged . | . . Bothacking | -11 -10 ------------ Run | Yrd Mat Used RIF Installer . | . . Robots Hacked . | . . Non-combat . | . . Combat . | . . Robot Hacks Applied . | . . Relay Couplers Released . | . . Fabnet Peak Effective % . | . . Robots Rewired . | . . Allies Hacked . | . . Hacks Repelled . | . . Allies | -11 -10 -------- Run | Yrd Mat Total Allies . | . . Largest Group . | . . Highest-Rated Group . | . . Highest-Rated Ally . | . . Total Orders . | . . Ally Attacks . | . . Total Damage . | . . Kills . | . . Allies Corrupted . | . . Allies Melted . | . . Intel | -11 -10 ------- Run | Yrd Mat Robot Analysis Total . | . . Derelict Logs Recovered . | . . Drone Launches . | . . Drone Recoveries . | . . Exploration | -11 -10 ------------- Run | Yrd Mat Turns Passed 720 | 41 679 Spaces Moved 491 | 46 445 Core 16 | 10 6 Treads 110 | . 110 Legs 47 | . 47 Wheels 318 | 36 282 Hover . | . . Flight . | . . Fastest Speed 50 | 50 80 Average Speed 101 | 73 104 Slowest Speed 160 | 80 160 Overloaded Moves . | . . Propulsion Burnouts . | . . Robots Hopped . | . . Cave-ins Triggered . | . . Exploration Rate (%) 29 | 3 56 Regions Visited 1 Branch Regions . Pre-discovered Areas . | . . Known Exits Taken . | . . Unknown Exits Taken 1 | 1 . Scrap Searched . | . . Spaces Dug . | . . Terrain Destroyed 8 | . 8 Melee . | . . Projectile . | . . AOE 8 | . 8 Terrain Rammed . | . . Walls Destroyed . | . . Machines Disabled . | . . Actions | -11 -10 --------- Run | Yrd Mat Total 608 | 53 555 Wait 11 | . 11 Move 490 | 45 445 Hop . | . . Pick Up 19 | 5 14 Fast Attach . | . . Attach 14 | 3 11 Detach . | . . Swap . | . . Drop 4 | . 4 Fire 27 | . 27 Melee 42 | . 42 Ram 1 | . 1 Kick . | . . Crush . | . . Escape Stasis . | . . Rewire . | . . Trap . | . . Miscellaneous . | . . Route ------- -11/Scrapyard -10/Materials (discovered 1 exit: [*Min]) History --------- Turn | Location | Event 17 | -11/Scrapyard | Discovered new exit (range 15) 42 | -11/Scrapyard | Entered Materials 198 | -10/Materials | Discovered new exit (range 15) 304 | -10/Materials | Build established: Mutant 578 | -10/Materials | Core integrity fell below 50% 589 | -10/Materials | Core integrity fell below 20% 621 | -10/Materials | Lost 4 parts (1p2n1w) 721 | -10/Materials | Destroyed by G-47 Trooper with Particle Gun Last Messages --------------- R-06 Scavenger collects Ion Engine. Sneak attack on R-06 Scavenger. R-06 Scavenger knocked back. Acquired 10 matter. Acquired Aluminum Leg. R-06 Scavenger collects Heat Sink. Sneak attack on R-06 Scavenger. Destroyed Com. Wheel. R-06 Scavenger system corrupted by crushing effect. R-06 Scavenger system terminally corrupted. Lgt. Ion Engine fried. Com. Wheel fried. K-01 Serf collects debris. Sneak attack on K-01 Serf. Destroyed Sml. Matter Pod. K-01 Serf system corrupted by crushing effect. K-01 Serf knocked back. W-16 Scout sends out distress signal. Acquired Flight Unit. R-06 Scavenger collects Corrupted Aluminum Leg. Map ----- +----------------------------------------------------+ | ???????????????????????????????? | | ???????????????????????????????? | | ???????????????????????????????? | | ???????????????????????????????? | | ???????????????????????????????? | | ???????????????????????????????? | | ???????????????????????????????? | | ???????????????????????????????? | | ???????????????????????????????? | | ?????????????????? ???????????? | | ?????????? ????? ???????????? | | ?????????? "??" #??????????? | | ?????????? "??" #??????????? | | ?????????+ """" #??????????? | | ?????????# ? #??????????? | | ?????????# #??????????# | | ?????????# """" +???????#### | | ?????????# """" #???????# | | ?????????# """" #???????# | | ?????????# #??????/ | | ########## #???????# | | # # """" #???????# | | # # """ ######### | | # ![= # """ | | # [= g# r ! | | # [ @g/ [% %= | | # # ! | | # ###+#####+#### | | # # # | | # # """ ""# | | ########## ! """ T"# ^ | | ?????????# """ ""# | | ?????????# ! # " | | ?????????############## | | ?????????????????????# ] # | | ???????????????????? ##### | | ??????????????????? T #???? | | ??????????????????? #???? | | ???????????????????### ????? | | ?????????????????????######????? | | ???????????????????????????????? | | ???????????????????????????????? | | ???????????????????????????????? | | ???????????????????????????????? | | ???????????????????????????????? | | ???????????????????????????????? | | ???????????????????????????????? | | ???????????????????????????????? | | ???????????????????????????????? | | ???????????????????????????????? | +----------------------------------------------------+ Best States ------------- Heat Dissipation 25 Energy Generation 10 Energy Capacity 125 Matter Stores 300 Matter Capacity 300 Sight Range 16 Terrain Scan Density 10 Power Shielding 33 Evasion (%) 55 Recoil Reduction 2 Item Schematics ----------------- None Robot Schematics ------------------ None Fabricated ------------ Nothing Alien Tech Used ----------------- None Achievements -------------- None Challenges ------------ None Game ------ Seed ParticleShockShifter Manual? 0 Play Time 00:09:04 Cumulative 14.5 hours Start 2024.07.31 @ 05:51:33 End 2024.07.31 @ 06:00:18 Sessions 1 Manual Loads 0 Difficulty Rogue Special Mode None Game No. 25 Rogue 25 Adventurer 0 Explorer 0 Win Type - Total 0 Types 0/0/0/0/0/0/0/0/0 Lore% 16 Gallery% 20 Achievement% 20 Wizard Run 0 Options --------- Layout 1 ASCII 0 Keyboard 0 Movement Numpad Keybinds 0 Fullscreen 2 Font 32/SmallcapsGlow Map View 77x35 Zoom Use 0% Tactical HUD 0 Map Filters NONE Filters NONE Steam 1 RUN: 15b11c34-469d-4643-ac8d-2572247d6109